fUSD/lending_fUSD_20250113
["ID","MTS","AMOUNT","RATE_DAILY","PERIOD"]
[348807674,1736789480759,-462.25,0.00012329,2]
[348807675,1736789480768,-462.25,0.00012329,2]
[348807676,1736789480778,-462.25,0.00012329,2]
[348807677,1736789480787,-462.25,0.00012329,2]
[348807678,1736789480796,-462.25,0.00012329,2]
[348807679,1736789480806,-462.25,0.00012329,2]
[348807680,1736789480815,-164.793844,0.00012329,2]
[348807681,1736789480825,-151.0,0.00012329,2]
[348807682,1736789480835,-151.0,0.00012329,2]
[348807683,1736789480845,-151.0,0.00012329,2]
[348807684,1736789480855,-151.0,0.00012329,2]
[348807685,1736789480865,-151.0,0.00012329,2]
[348807686,1736789480873,-151.0,0.00012329,2]
[348807687,1736789480883,-151.0,0.00012329,2]
[348807688,1736789480892,-203.952079,0.00012329,2]
[348807689,1736789480902,-151.0,0.00012329,2]
[348807690,1736789480913,-151.0,0.00012329,2]
[348807691,1736789480922,-151.0,0.00012329,2]
[348807692,1736789480939,-151.0,0.00012329,2]
[348807693,1736789480949,-151.0,0.00012329,2]
[348807694,1736789480958,-151.0,0.00012329,2]
[348807695,1736789480968,-151.0,0.00012329,2]
[348807696,1736789480977,-151.0,0.00012329,2]
[348807697,1736789480987,-151.0,0.00012329,2]
[348807698,1736789480996,-151.0,0.00012329,2]
[348807699,1736789481006,-151.0,0.00012329,2]
[348807700,1736789481016,-195.145263,0.00012329,2]
[348807701,1736789481025,-252.052812,0.00012329,2]
[348807702,1736789481036,-252.052812,0.00012329,2]
[348807703,1736789481046,-252.052812,0.00012329,2]
[348807704,1736789481057,-252.052812,0.00012329,2]
[348807705,1736789481067,-252.052812,0.00012329,2]
[348807706,1736789481076,-252.052812,0.00012329,2]
[348807707,1736789481086,-252.052812,0.00012329,2]
[348807708,1736789481096,-252.052812,0.00012329,2]
[348807709,1736789481106,-252.052812,0.00012329,2]
[348807710,1736789481116,-252.052812,0.00012329,2]
[348807711,1736789481126,-252.052812,0.00012329,2]
[348807712,1736789481135,-252.052812,0.00012329,2]
[348807713,1736789481144,-252.052812,0.00012329,2]
[348807714,1736789481154,-252.052812,0.00012329,2]
[348807715,1736789481163,-252.052812,0.00012329,2]
[348807716,1736789481172,-252.052812,0.00012329,2]
[348807717,1736789481185,-252.052812,0.00012329,2]
[348807718,1736789481194,-252.052812,0.00012329,2]
[348807719,1736789481203,-151.0,0.00012329,2]
[348807720,1736789481223,-151.0,0.00012329,2]
[348807721,1736789481233,-151.0,0.00012329,2]
[348807722,1736789481248,-151.0,0.00012329,2]
[348807723,1736789481258,-151.0,0.00012329,2]
[348807724,1736789481269,-151.0,0.00012329,2]
[348807725,1736789481279,-151.0,0.00012329,2]
[348807726,1736789481288,-151.0,0.00012329,2]
[348807727,1736789481298,-151.0,0.00012329,2]
[348807728,1736789481308,-176.241446,0.00012329,2]
[348807729,1736789481319,-176.241446,0.00012329,2]
[348807730,1736789481328,-176.241446,0.00012329,2]
[348807731,1736789481338,-176.241446,0.00012329,2]
[348807732,1736789481347,-176.241446,0.00012329,2]
[348807733,1736789481358,-176.241446,0.00012329,2]
[348807734,1736789481367,-176.241446,0.00012329,2]
[348807735,1736789481376,-176.241446,0.00012329,2]
[348807736,1736789481386,-176.241446,0.00012329,2]
[348807737,1736789481395,-176.241446,0.00012329,2]
[348807738,1736789481404,-176.241446,0.00012329,2]
[348807739,1736789481413,-176.241446,0.00012329,2]
[348807740,1736789481422,-176.241446,0.00012329,2]
[348807741,1736789481436,-176.241446,0.00012329,2]
[348807742,1736789481446,-176.241446,0.00012329,2]
[348807743,1736789481455,-176.241446,0.00012329,2]
[348807744,1736789481465,-176.241446,0.00012329,2]
[348807745,1736789481474,-176.241446,0.00012329,2]
[348807746,1736789481484,-151.0,0.00012329,2]
[348807747,1736789481493,-151.0,0.00012329,2]
[348807748,1736789481503,-151.0,0.00012329,2]
[348807749,1736789481513,-151.0,0.00012329,2]
[348807750,1736789481523,-151.0,0.00012329,2]
[348807751,1736789481533,-151.0,0.00012329,2]
[348807752,1736789481543,-151.0,0.00012329,2]
[348807753,1736789481552,-151.0,0.00012329,2]
[348807754,1736789481562,-151.0,0.00012329,2]
[348807755,1736789481572,-151.0,0.00012329,2]
[348807756,1736789481581,-151.0,0.00012329,2]
[348807757,1736789481591,-151.0,0.00012329,2]
[348807758,1736789481601,-151.0,0.00012329,2]
[348807759,1736789481611,-151.0,0.00012329,2]
[348807760,1736789481620,-151.0,0.00012329,2]
[348807761,1736789481629,-151.0,0.00012329,2]
[348807762,1736789481639,-151.0,0.00012329,2]
[348807763,1736789481648,-157.993008,0.00012329,2]
[348807764,1736789481658,-766.81978,0.00012329,2]
[348807765,1736789481667,-766.81978,0.00012329,2]
[348807766,1736789481678,-151.0,0.00012329,2]
[348807767,1736789481687,-151.0,0.00012329,2]
[348807768,1736789481697,-252.052812,0.00012329,2]
[348807769,1736789481707,-252.052813,0.00012329,2]
[348807770,1736789481717,-201.983281,0.00012329,2]
[348807771,1736789481727,-176.241446,0.00012329,2]
[348807772,1736789481737,-176.241443,0.00012329,2]
[348807773,1736789481749,-151.0,0.00012329,2]
[348807774,1736789481759,-500.0,0.00012355,2]
[348807775,1736789481770,-500.0,0.00012355,2]
[348807776,1736789481779,-184.95465696,0.00012363,2]
[348807777,1736789481789,-150.0,0.00012369,2]
[348807778,1736789481798,-1000.0,0.0001237,2]
[348807779,1736789481808,-202.23076678,0.00012371,2]
[348807780,1736789481818,-500.0,0.00012382,2]
[348807781,1736789481828,-500.0,0.00012382,2]
[348807782,1736789481838,-437.23,0.00012391,2]
[348807783,1736789481847,-437.23,0.00012391,2]
[348807784,1736789481857,-437.23,0.00012391,2]
[348807785,1736789481866,-500.0,0.0001241,2]
[348807786,1736789481877,-500.0,0.0001241,2]
[348807787,1736789481886,-524.87,0.00012436,2]
[348807788,1736789481897,-1706.58,0.00012436,2]
[348807789,1736789481906,-564.29,0.00012436,2]
[348807790,1736789481916,-728.34,0.00012436,2]
[348807791,1736789481928,-500.0,0.00012437,2]
[348807792,1736789481939,-500.0,0.00012437,2]
[348807793,1736789481949,-500.0,0.00012445,2]
[348807794,1736789481958,-500.0,0.00012445,2]
[348807795,1736789481968,-462.25,0.00012445,2]
[348807796,1736789481977,-462.25,0.00012445,2]
[348807797,1736789481987,-156.915755,0.00012445,2]
[348807798,1736789481998,-156.915755,0.00012445,2]
[348807799,1736789482007,-285.512409,0.00012445,2]
[348807800,1736789482017,-285.512409,0.00012445,2]
[348807801,1736789482028,-296.292217,0.00012445,2]
[348807802,1736789482039,-151.0,0.00012445,2]
[348807803,1736789482048,-246.238241,0.00012445,2]
[348807804,1736789482058,-246.238241,0.00012445,2]
[348807805,1736789482068,-168.12,0.00012461,2]
[348807806,1736789482077,-500.0,0.00012461,2]
[348807807,1736789482087,-216.59,0.00012461,2]
[348807808,1736789482097,-500.0,0.00012461,2]
[348807809,1736789482107,-500.0,0.00012461,2]
[348807810,1736789482117,-500.0,0.00012461,2]
[348807811,1736789482129,-500.0,0.00012461,2]
[348807812,1736789482140,-500.0,0.00012461,2]
[348807813,1736789482150,-510.7,0.00012461,2]
[348807814,1736789482160,-1887.52,0.00012461,2]
[348807815,1736789482170,-500.0,0.00012461,2]
[348807816,1736789482183,-506.91,0.00012461,2]
[348807817,1736789482193,-168.53,0.00012461,2]
[348807818,1736789482202,-500.0,0.00012461,2]
[348807819,1736789482213,-500.0,0.00012461,2]
[348807820,1736789482223,-500.0,0.00012461,2]
[348807821,1736789482235,-500.0,0.00012462,2]
[348807822,1736789482249,-515.03,0.00012462,2]
[348807823,1736789482259,-641.14,0.00012462,2]
[348807824,1736789482269,-550.42,0.00012462,2]
[348807825,1736789482279,-500.0,0.00012462,2]
[348807826,1736789482289,-500.0,0.00012462,2]
[348807827,1736789482299,-500.0,0.00012462,2]
[348807828,1736789482309,-500.0,0.00012462,2]
[348807829,1736789482320,-461.32,0.00012462,2]
[348807830,1736789482331,-519.61,0.00012462,2]
[348807831,1736789482342,-500.0,0.00012462,2]
[348807832,1736789482352,-500.0,0.00012462,2]
[348807833,1736789482361,-504.63,0.00012462,2]
[348807834,1736789482371,-752.85,0.00012462,2]
[348807835,1736789482380,-500.0,0.00012462,2]
[348807836,1736789482390,-937.69,0.00012462,2]
[348807837,1736789482400,-748.27,0.00012462,2]
[348807838,1736789482409,-500.0,0.00012462,2]
[348807839,1736789482419,-919.9,0.00012462,2]
[348807840,1736789482432,-766.36,0.00012462,2]
[348807841,1736789482442,-831.27,0.00012462,2]
[348807842,1736789482452,-652.15,0.00012462,2]
[348807843,1736789482462,-500.0,0.00012462,2]
[348807844,1736789482472,-1618.06,0.00012462,2]
[348807845,1736789482482,-436.8657884,0.00012462,2]
[348807846,1736789482492,-503.86,0.00012462,2]
[348807847,1736789482502,-491.82053249,0.00012462,2]
[348807848,1736789482681,-500.0,0.00012462,2]
[348807849,1736789482692,-738.35,0.00012462,2]
[348807850,1736789482702,-602.52,0.00012462,2]
[348807851,1736789482712,-704.36,0.00012462,2]
[348807852,1736789482721,-805.11,0.00012462,2]
[348807853,1736789482731,-599.92,0.00012462,2]
[348807854,1736789482740,-227.72,0.00012462,2]
[348807855,1736789482749,-1474.42,0.00012462,2]
[348807856,1736789482759,-500.0,0.00012462,2]
[348807857,1736789482768,-1194.18,0.00012462,2]
[348807858,1736789482778,-5242.15,0.00012462,2]
[348807859,1736789482788,-602.8,0.00012462,2]
[348807860,1736789482797,-596.47,0.00012462,2]
[348807861,1736789482807,-2360.29,0.00012462,2]
[348807862,1736789482817,-1352.23,0.00012462,2]
[348807863,1736789482826,-893.39,0.00012462,2]
[348807864,1736789482836,-500.0,0.00012462,2]
[348807865,1736789482846,-1603.75,0.00012462,2]
[348807866,1736789482856,-500.0,0.00012462,2]
[348807867,1736789482866,-500.0,0.00012462,2]
[348807868,1736789482876,-500.0,0.00012462,2]
[348807869,1736789482885,-1295.57,0.00012462,2]
[348807870,1736789482895,-2161.69,0.00012462,2]
[348807871,1736789482905,-1828.01,0.00012462,2]
[348807872,1736789482915,-500.0,0.00012462,2]
[348807873,1736789482924,-1024.72,0.00012462,2]
[348807874,1736789482936,-3242.95,0.00012462,2]
[348807875,1736789482947,-500.0,0.00012462,2]
[348807876,1736789482957,-541.15,0.00012462,2]
[348807877,1736789482967,-500.0,0.00012462,2]
[348807878,1736789482976,-962.13,0.00012462,2]
[348807879,1736789482986,-977.39,0.00012462,2]
[348807880,1736789482996,-3349.73,0.00012462,2]
[348807881,1736789483005,-496.7891618,0.00012462,2]
[348807882,1736789483014,-622.56,0.00012462,2]
[348807883,1736789483024,-1792.63,0.00012462,2]
[348807884,1736789483035,-755.384315,0.00012462,2]
[348807885,1736789483045,-1992.33,0.00012462,2]
[348807886,1736789483056,-898.56,0.00012462,2]
[348807887,1736789483066,-500.0,0.00012462,2]
[348807888,1736789483075,-2892.25,0.00012462,2]
[348807889,1736789483086,-573.54,0.00012462,2]
[348807890,1736789483095,-562.095232,0.00012462,2]
[348807891,1736789483105,-500.0,0.00012462,2]
[348807892,1736789483115,-692.69,0.00012462,2]
[348807893,1736789483125,-2613.03,0.00012462,2]
[348807894,1736789483134,-720.13,0.00012462,2]
[348807895,1736789483144,-732.19,0.00012462,2]
[348807896,1736789483154,-1361.66,0.00012462,2]
[348807897,1736789483164,-1022.89,0.00012462,2]
[348807898,1736789483173,-568.68,0.00012462,2]
[348807899,1736789483187,-626.77,0.00012462,2]
[348807900,1736789483198,-606.7,0.00012462,2]
[348807901,1736789483207,-500.0,0.00012462,2]
[348807902,1736789483216,-500.0,0.00012462,2]
[348807903,1736789483226,-357.33002402,0.00012462,2]
[348807904,1736789483237,-500.0,0.00012462,2]
[348807905,1736789483251,-1699.69,0.00012462,2]
[348807906,1736789483260,-573.82,0.00012462,2]
[348807907,1736789483269,-500.0,0.00012462,2]
[348807908,1736789483280,-506.25,0.00012462,2]
[348807909,1736789483291,-500.0,0.00012463,2]
[348807910,1736789483301,-500.0,0.00012463,2]
[348807911,1736789483311,-1255.89,0.00012463,2]
[348807912,1736789483322,-961.31,0.00012463,2]
[348807913,1736789483332,-2512.37,0.00012463,2]
[348807914,1736789483342,-1325.84,0.00012463,2]
[348807915,1736789483352,-1827.85,0.00012463,2]
[348807916,1736789483361,-3096.14,0.00012463,2]
[348807917,1736789483371,-1519.79,0.00012463,2]
[348807918,1736789483382,-500.0,0.00012463,2]
[348807919,1736789483393,-3417.73,0.00012463,2]
[348807920,1736789483403,-500.0,0.00012463,2]
[348807921,1736789483414,-789.75,0.00012463,2]
[348807922,1736789483423,-552.14,0.00012463,2]
[348807923,1736789483435,-232.34832248,0.00012463,2]
[348807924,1736789483445,-500.0,0.00012463,2]
[348807925,1736789483455,-936.68,0.00012463,2]
[348807926,1736789483465,-548.55,0.00012463,2]
[348807927,1736789483475,-500.0,0.00012463,2]
[348807928,1736789483486,-917.73,0.00012463,2]
[348807929,1736789483496,-500.0,0.00012463,2]
[348807930,1736789483506,-618.14,0.00012463,2]
[348807931,1736789483516,-650.64,0.00012463,2]
[348807932,1736789483526,-1418.5,0.00012463,2]
[348807933,1736789483535,-500.0,0.00012463,2]
[348807934,1736789483545,-500.0,0.00012463,2]
[348807935,1736789483554,-742.14,0.00012463,2]
[348807936,1736789483564,-1130.8,0.00012463,2]
[348807937,1736789483574,-697.9,0.00012463,2]
[348807938,1736789483584,-759.61,0.00012463,2]
[348807939,1736789483594,-500.0,0.00012463,2]
[348807940,1736789483604,-500.0,0.00012463,2]
[348807941,1736789483613,-757.35,0.00012463,2]
[348807942,1736789483623,-2741.02,0.00012463,2]
[348807943,1736789483632,-500.0,0.00012463,2]
[348807944,1736789483642,-703.48,0.00012463,2]
[348807945,1736789483651,-1444.04,0.00012463,2]
[348807946,1736789483661,-718.2,0.00012463,2]
[348807947,1736789483671,-589.58,0.00012463,2]
[348807948,1736789483683,-3579.12,0.00012463,2]
[348807949,1736789483693,-500.0,0.00012463,2]
[348807950,1736789483703,-1062.35,0.00012463,2]
[348807951,1736789483712,-689.6,0.00012463,2]
[348807952,1736789483722,-1023.71,0.00012463,2]
[348807953,1736789483731,-629.07,0.00012463,2]
[348807954,1736789483741,-722.38,0.00012463,2]
[348807955,1736789483751,-564.7,0.00012463,2]
[348807956,1736789483760,-768.6,0.00012463,2]
[348807957,1736789483770,-500.0,0.00012463,2]
[348807958,1736789483780,-682.62,0.00012463,2]
[348807959,1736789483789,-4003.4,0.00012463,2]
[348807960,1736789483799,-500.0,0.00012463,2]
[348807961,1736789483809,-500.0,0.00012463,2]
[348807962,1736789483819,-716.85,0.00012463,2]
[348807963,1736789483828,-1020.95,0.00012463,2]
[348807964,1736789483838,-680.17,0.00012463,2]
[348807965,1736789483848,-500.0,0.00012463,2]
[348807966,1736789483858,-661.97,0.00012463,2]
[348807967,1736789483868,-976.49,0.00012463,2]
[348807968,1736789483877,-752.64,0.00012463,2]
[348807969,1736789483890,-714.39,0.00012463,2]
[348807970,1736789483909,-500.0,0.00012463,2]
[348807971,1736789483925,-780.26,0.00012463,2]
[348807972,1736789483946,-500.0,0.00012463,2]
[348807973,1736789483964,-584.45,0.00012463,2]
[348807974,1736789483980,-699.85,0.00012463,2]
[348807975,1736789483994,-500.0,0.00012463,2]
[348807976,1736789484011,-1736.594428,0.00012464,2]
[348807977,1736789484028,-1736.594428,0.00012464,2]
[348807978,1736789484046,-151.0,0.00012464,2]
[348807979,1736789484065,-151.0,0.00012464,2]
[348807980,1736789484082,-159.942956,0.00012464,2]
[348807981,1736789484098,-159.942956,0.00012464,2]
[348807982,1736789484114,-425.261675,0.00012464,2]
[348807983,1736789484131,-425.261675,0.00012464,2]
[348807984,1736789484145,-551.880883,0.00012464,2]
[348807985,1736789484157,-551.880883,0.00012464,2]
[348807986,1736789484179,-1506.6,0.00012464,2]
[348807987,1736789484191,-1460.16,0.00012464,2]
[348807988,1736789484206,-872.27,0.00012464,2]
[348807989,1736789484222,-1766.08,0.00012464,2]
[348807990,1736789484239,-5849.77,0.00012464,2]
[348807991,1736789484256,-735.41645874,0.00012464,2]
[348807992,1736789484270,-500.0,0.00012464,2]
[348807993,1736789484285,-500.0,0.00012492,2]
[348807994,1736789484300,-293.86292147,0.000125,2]
[348807995,1736789484315,-500.0,0.00012539,2]
[348807996,1736789484330,-202.23076678,0.00012547,2]
[348807997,1736789484346,-500.0,0.000126,2]
[348807998,1736789484360,-2256.21,0.00012602,2]
[348807999,1736789484375,-500.0,0.00012602,2]
[348808000,1736789484389,-61764.94,0.00012603,2]
[348808001,1736789484404,-1056.99,0.0001261,2]
[348808002,1736789484418,-201.01,0.00012637,2]
[348808003,1736789484435,-760.2,0.00012652,2]
[348808004,1736789484451,-1000.0,0.00012675,2]
[348808005,1736789484464,-151.0,0.0001271,2]
[348808006,1736789484478,-151.0,0.0001271,2]
[348808007,1736789484492,-151.0,0.0001271,2]
[348808008,1736789484506,-466.707392,0.0001271,2]
[348808009,1736789484520,-466.707392,0.0001271,2]
[348808010,1736789484535,-219.225896,0.0001271,2]
[348808011,1736789484548,-219.225896,0.0001271,2]
[348808012,1736789484563,-151.0,0.0001271,2]
[348808013,1736789484577,-484.9,0.0001271,2]
[348808014,1736789484590,-484.9,0.0001271,2]
[348808015,1736789484603,-524.87,0.0001271,2]
[348808016,1736789484617,-1706.58,0.0001271,2]
[348808017,1736789484631,-564.29,0.0001271,2]
[348808018,1736789484644,-728.34,0.0001271,2]
[348808019,1736789484659,-202.23076678,0.00012724,2]
[348808020,1736789484673,-500.0,0.00012735,2]
[348808021,1736789484691,-500.0,0.00012735,2]
[348808022,1736789484704,-500.0,0.00012735,2]
[348808023,1736789484718,-500.0,0.00012735,2]
[348808024,1736789484732,-500.0,0.00012735,2]
[348808025,1736789484746,-1887.52,0.00012735,2]
[348808026,1736789484760,-500.0,0.00012735,2]
[348808027,1736789484773,-506.91,0.00012735,2]
[348808028,1736789484788,-500.0,0.00012735,2]
[348808029,1736789484802,-500.0,0.00012735,2]
[348808030,1736789484816,-500.0,0.00012735,2]
[348808031,1736789484830,-500.0,0.00012736,2]
[348808032,1736789484843,-515.03,0.00012736,2]
[348808033,1736789484856,-641.14,0.00012736,2]
[348808034,1736789484870,-550.42,0.00012736,2]
[348808035,1736789484883,-500.0,0.00012736,2]
[348808036,1736789484897,-500.0,0.00012736,2]
[348808037,1736789484909,-500.0,0.00012736,2]
[348808038,1736789484924,-500.0,0.00012736,2]
[348808039,1736789484941,-519.61,0.00012736,2]
[348808040,1736789484955,-500.0,0.00012736,2]
[348808041,1736789484969,-500.0,0.00012736,2]
[348808042,1736789484982,-504.63,0.00012736,2]
[348808043,1736789484994,-752.85,0.00012736,2]
[348808044,1736789485011,-500.0,0.00012736,2]
[348808045,1736789485024,-937.69,0.00012736,2]
[348808046,1736789485038,-748.27,0.00012736,2]
[348808047,1736789485051,-500.0,0.00012736,2]
[348808048,1736789485064,-919.9,0.00012736,2]
[348808049,1736789485078,-766.36,0.00012736,2]
[348808050,1736789485091,-831.27,0.00012736,2]
[348808051,1736789485104,-652.15,0.00012736,2]
[348808052,1736789485118,-1618.06,0.00012736,2]
[348808053,1736789485131,-503.86,0.00012736,2]
[348808054,1736789485144,-500.0,0.00012736,2]
[348808055,1736789485159,-738.35,0.00012736,2]
[348808056,1736789485175,-602.52,0.00012736,2]
[348808057,1736789485192,-704.36,0.00012736,2]
[348808058,1736789485205,-805.11,0.00012736,2]
[348808059,1736789485220,-599.92,0.00012736,2]
[348808060,1736789485235,-1474.42,0.00012736,2]
[348808061,1736789485254,-214.03,0.00012736,2]
[348808062,1736789485268,-1194.18,0.00012736,2]
[348808063,1736789485282,-5242.15,0.00012736,2]
[348808064,1736789485297,-602.8,0.00012736,2]
[348808065,1736789485312,-596.47,0.00012736,2]
[348808066,1736789485327,-2360.29,0.00012736,2]
[348808067,1736789485342,-1352.23,0.00012736,2]
[348808068,1736789485356,-893.39,0.00012736,2]
[348808069,1736789485370,-500.0,0.00012736,2]
[348808070,1736789485383,-1603.75,0.00012736,2]
[348808071,1736789485397,-500.0,0.00012736,2]
[348808072,1736789485412,-500.0,0.00012736,2]
[348808073,1736789485427,-500.0,0.00012736,2]
[348808074,1736789485444,-1295.57,0.00012736,2]
[348808075,1736789485457,-2161.69,0.00012736,2]
[348808076,1736789485471,-1828.01,0.00012736,2]
[348808077,1736789485485,-500.0,0.00012736,2]
[348808078,1736789485498,-1024.72,0.00012736,2]
[348808079,1736789485512,-3242.95,0.00012736,2]
[348808080,1736789485527,-541.15,0.00012736,2]
[348808081,1736789485543,-500.0,0.00012736,2]
[348808082,1736789485558,-962.13,0.00012736,2]
[348808083,1736789485779,-977.39,0.00012736,2]
[348808084,1736789485789,-3349.73,0.00012736,2]
[348808085,1736789485800,-1792.63,0.00012736,2]
[348808086,1736789485810,-755.384315,0.00012736,2]
[348808087,1736789485820,-1992.33,0.00012736,2]
[348808088,1736789485830,-898.56,0.00012736,2]
[348808089,1736789485841,-500.0,0.00012736,2]
[348808090,1736789485851,-2892.25,0.00012736,2]
[348808091,1736789485861,-573.54,0.00012736,2]
[348808092,1736789485870,-562.095232,0.00012736,2]
[348808093,1736789485880,-500.0,0.00012736,2]
[348808094,1736789485890,-692.69,0.00012736,2]
[348808095,1736789485902,-2613.03,0.00012736,2]
[348808096,1736789485912,-720.13,0.00012736,2]
[348808097,1736789485921,-732.19,0.00012736,2]
[348808098,1736789485931,-1361.66,0.00012736,2]
[348808099,1736789485941,-1022.89,0.00012736,2]
[348808100,1736789485951,-568.68,0.00012736,2]
[348808101,1736789485960,-626.77,0.00012736,2]
[348808102,1736789485970,-606.7,0.00012736,2]
[348808103,1736789485979,-500.0,0.00012736,2]
[348808104,1736789485989,-555.85,0.00012736,2]
[348808105,1736789485998,-500.0,0.00012736,2]
[348808106,1736789486008,-1699.69,0.00012736,2]
[348808107,1736789486018,-573.82,0.00012736,2]
[348808108,1736789486028,-500.0,0.00012736,2]
[348808109,1736789486037,-506.25,0.00012736,2]
[348808110,1736789486047,-500.0,0.00012737,2]
[348808111,1736789486058,-500.0,0.00012737,2]
[348808112,1736789486068,-1255.89,0.00012737,2]
[348808113,1736789486077,-961.31,0.00012737,2]
[348808114,1736789486087,-2512.37,0.00012737,2]
[348808115,1736789486096,-1325.84,0.00012737,2]
[348808116,1736789486107,-1827.85,0.00012737,2]
[348808117,1736789486117,-3096.14,0.00012737,2]
[348808118,1736789486127,-1519.79,0.00012737,2]
[348808119,1736789486138,-3417.73,0.00012737,2]
[348808120,1736789486148,-300.10534136,0.00012737,2]
[348808121,1736789486160,-789.75,0.00012737,2]
[348808122,1736789486172,-552.14,0.00012737,2]
[348808123,1736789486184,-500.0,0.00012737,2]
[348808124,1736789486193,-936.68,0.00012737,2]
[348808125,1736789486202,-548.55,0.00012737,2]
[348808126,1736789486212,-581.23652464,0.00012737,2]
[348808127,1736789486222,-917.73,0.00012737,2]
[348808128,1736789486231,-471.84,0.00012737,2]
[348808129,1736789486243,-618.14,0.00012737,2]
[348808130,1736789486254,-650.64,0.00012737,2]
[348808131,1736789486263,-1418.5,0.00012737,2]
[348808132,1736789486273,-500.0,0.00012737,2]
[348808133,1736789486284,-500.0,0.00012737,2]
[348808134,1736789486294,-742.14,0.00012737,2]
[348808135,1736789486303,-1130.8,0.00012737,2]
[348808136,1736789486313,-697.9,0.00012737,2]
[348808137,1736789486324,-759.61,0.00012737,2]
[348808138,1736789486333,-500.0,0.00012737,2]
[348808139,1736789486344,-500.0,0.00012737,2]
[348808140,1736789486353,-757.35,0.00012737,2]
[348808141,1736789486364,-2741.02,0.00012737,2]
[348808142,1736789486373,-500.0,0.00012737,2]
[348808143,1736789486383,-703.48,0.00012737,2]
[348808144,1736789486393,-1444.04,0.00012737,2]
[348808145,1736789486402,-718.2,0.00012737,2]
[348808146,1736789486411,-589.58,0.00012737,2]
[348808147,1736789486421,-3579.12,0.00012737,2]
[348808148,1736789486431,-500.0,0.00012737,2]
[348808149,1736789486441,-1062.35,0.00012737,2]
[348808150,1736789486450,-689.6,0.00012737,2]
[348808151,1736789486459,-1023.71,0.00012737,2]
[348808152,1736789486470,-629.07,0.00012737,2]
[348808153,1736789486479,-722.38,0.00012737,2]
[348808154,1736789486490,-564.7,0.00012737,2]
[348808155,1736789486499,-768.6,0.00012737,2]
[348808156,1736789486509,-500.0,0.00012737,2]
[348808157,1736789486520,-682.62,0.00012737,2]
[348808158,1736789486531,-4003.4,0.00012737,2]
[348808159,1736789486541,-500.0,0.00012737,2]
[348808160,1736789486551,-500.0,0.00012737,2]
[348808161,1736789486561,-716.85,0.00012737,2]
[348808162,1736789486571,-1020.95,0.00012737,2]
[348808163,1736789486581,-680.17,0.00012737,2]
[348808164,1736789486592,-500.0,0.00012737,2]
[348808165,1736789486602,-661.97,0.00012737,2]
[348808166,1736789486612,-976.49,0.00012737,2]
[348808167,1736789486621,-752.64,0.00012737,2]
[348808168,1736789486631,-714.39,0.00012737,2]
[348808169,1736789486641,-619.83427568,0.00012737,2]
[348808170,1736789486651,-780.26,0.00012737,2]
[348808171,1736789486661,-542.04,0.00012737,2]
[348808172,1736789486671,-584.45,0.00012737,2]
[348808173,1736789486682,-699.85,0.00012737,2]